fUST/lending_fUST_20241108
["ID","MTS","AMOUNT","RATE_DAILY","PERIOD"]
[341642473,1731055841204,-500.0,0.00022191,2]
[341642474,1731055841213,-500.0,0.00022191,2]
[341642475,1731055841222,-500.0,0.00022191,2]
[341642476,1731055841231,-500.0,0.00022191,2]
[341642477,1731055841241,-500.0,0.00022191,2]
[341642478,1731055841250,-1556.05,0.00022191,2]
[341642479,1731055841259,-500.0,0.00022191,2]
[341642480,1731055841268,-500.0,0.00022191,2]
[341642481,1731055841278,-570.56,0.00022191,2]
[341642482,1731055841287,-258.64099965,0.00022191,2]
[341642483,1731055841296,-500.0,0.00022191,2]
[341642484,1731055841305,-500.0,0.00022191,2]
[341642485,1731055841315,-500.0,0.00022191,2]
[341642486,1731055841324,-625.89,0.00022191,2]
[341642487,1731055841333,-504.82262308,0.00022191,2]
[341642488,1731055841342,-500.0,0.00022191,2]
[341642489,1731055841352,-793.11,0.00022191,2]
[341642490,1731055841361,-500.0,0.00022191,2]
[341642491,1731055841371,-500.0,0.00022191,2]
[341642492,1731055841381,-500.0,0.00022191,2]
[341642493,1731055841391,-1474.44,0.00022191,2]
[341642494,1731055841400,-518.93973576,0.00022191,2]
[341642495,1731055841409,-530.9419479,0.00022191,2]
[341642496,1731055841418,-500.0,0.00022191,2]
[341642497,1731055841427,-500.0,0.00022191,2]
[341642498,1731055841436,-500.0,0.00022191,2]
[341642499,1731055841445,-500.0,0.00022191,2]
[341642500,1731055841454,-500.0,0.00022191,2]
[341642501,1731055841464,-578.54869807,0.00022191,2]
[341642502,1731055841473,-500.0,0.00022191,2]
[341642503,1731055841483,-722.59,0.00022191,2]
[341642504,1731055841498,-500.0,0.00022191,2]
[341642505,1731055841509,-500.0,0.00022191,2]
[341642506,1731055841519,-306.06309448,0.00022191,2]
[341642507,1731055841528,-500.0,0.00022191,2]
[341642508,1731055841538,-500.0,0.00022191,2]
[341642509,1731055841547,-500.0,0.00022191,2]
[341642510,1731055841556,-500.0,0.00022191,2]
[341642511,1731055841565,-616.3945092,0.00022191,2]
[341642512,1731055841575,-163.53043629,0.00022191,2]
[341642513,1731055841584,-556.87,0.00022191,2]
[341642514,1731055841593,-464.90244324,0.00022191,2]
[341642515,1731055841602,-500.0,0.00022191,2]
[341642516,1731055841611,-500.0,0.00022191,2]
[341642517,1731055841620,-500.0,0.00022191,2]
[341642518,1731055841629,-500.0,0.00022191,2]
[341642519,1731055841639,-500.0,0.00022191,2]
[341642520,1731055841651,-500.0,0.00022191,2]
[341642521,1731055841660,-500.0,0.00022191,2]
[341642522,1731055841670,-500.0,0.00022191,2]
[341642523,1731055841679,-500.0,0.00022191,2]
[341642524,1731055841689,-500.0,0.00022191,2]
[341642525,1731055841698,-500.0,0.00022191,2]
[341642526,1731055841707,-910.19,0.00022191,2]
[341642527,1731055841721,-500.0,0.00022191,2]
[341642528,1731055841733,-500.0,0.00022191,2]
[341642529,1731055841742,-500.0,0.00022191,2]
[341642530,1731055841751,-500.0,0.00022191,2]
[341642531,1731055841760,-500.0,0.00022191,2]
[341642532,1731055841770,-500.0,0.00022191,2]
[341642533,1731055841779,-553.56,0.00022191,2]
[341642534,1731055841788,-500.0,0.00022191,2]
[341642535,1731055841797,-581.74421242,0.00022191,2]
[341642536,1731055841898,-987.64,0.00022191,2]
[341642537,1731055841907,-500.0,0.00022191,2]
[341642538,1731055841916,-500.0,0.00022191,2]
[341642539,1731055841925,-500.0,0.00022191,2]
[341642540,1731055841935,-500.0,0.00022191,2]
[341642541,1731055841944,-500.0,0.00022191,2]
[341642542,1731055841953,-209.84903061,0.00022191,2]
[341642543,1731055841963,-487.27084624,0.00022191,2]
[341642544,1731055841972,-500.0,0.00022191,2]
[341642545,1731055841983,-500.0,0.00022191,2]
[341642546,1731055841992,-683.0,0.00022191,2]
[341642547,1731055842001,-500.0,0.00022191,2]
[341642548,1731055842011,-500.0,0.00022191,2]
[341642549,1731055842020,-500.0,0.00022191,2]
[341642550,1731055842030,-500.0,0.00022191,2]
[341642551,1731055842040,-684.63,0.00022191,2]
[341642552,1731055842049,-507.95479792,0.00022191,2]
[341642553,1731055842058,-597.24545072,0.00022191,2]
[341642554,1731055842068,-500.0,0.00022191,2]
[341642555,1731055842077,-500.0,0.00022191,2]
[341642556,1731055842087,-500.0,0.00022191,2]
[341642557,1731055842097,-500.0,0.00022191,2]
[341642558,1731055842106,-500.0,0.00022191,2]
[341642559,1731055842116,-1000.37,0.00022191,2]
[341642560,1731055842125,-500.0,0.00022191,2]
[341642561,1731055842135,-523.52651081,0.00022191,2]
[341642562,1731055842144,-500.0,0.00022191,2]
[341642563,1731055842154,-500.0,0.00022191,2]
[341642564,1731055842163,-4039.9,0.00022191,2]
[341642565,1731055842173,-599.6,0.00022191,2]
[341642566,1731055842182,-500.0,0.00022191,2]
[341642567,1731055842192,-500.0,0.00022191,2]
[341642568,1731055842201,-500.0,0.00022191,2]
[341642569,1731055842211,-500.0,0.00022191,2]
[341642570,1731055842220,-774.9,0.00022191,2]
[341642571,1731055842231,-500.0,0.00022191,2]
[341642572,1731055842242,-544.36671135,0.00022191,2]
[341642573,1731055842261,-500.0,0.00022191,2]
[341642574,1731055842270,-500.0,0.00022191,2]
[341642575,1731055842280,-500.0,0.00022191,2]
[341642576,1731055842289,-500.0,0.00022191,2]
[341642577,1731055842299,-500.0,0.00022191,2]
[341642578,1731055842309,-500.0,0.00022191,2]
[341642579,1731055842319,-500.0,0.00022191,2]
[341642580,1731055842329,-244.62029407,0.00022191,2]
[341642581,1731055842338,-500.0,0.00022191,2]
[341642582,1731055842348,-500.0,0.00022191,2]
[341642583,1731055842356,-500.0,0.00022191,2]
[341642584,1731055842366,-500.0,0.00022191,2]
[341642585,1731055842375,-500.0,0.00022191,2]
[341642586,1731055842384,-509.84,0.00022191,2]
[341642587,1731055842394,-500.0,0.00022191,2]
[341642588,1731055842403,-500.0,0.00022191,2]
[341642589,1731055842413,-500.0,0.00022191,2]
[341642590,1731055842423,-500.0,0.00022191,2]
[341642591,1731055842432,-500.0,0.00022191,2]
[341642592,1731055842442,-500.0,0.00022191,2]
[341642593,1731055842451,-500.0,0.00022191,2]
[341642594,1731055842461,-1236.91,0.00022191,2]
[341642595,1731055842470,-4739.43,0.00022191,2]
[341642596,1731055842481,-500.0,0.00022191,2]
[341642597,1731055842490,-500.0,0.00022191,2]
[341642598,1731055842499,-500.0,0.00022191,2]
[341642599,1731055842508,-500.0,0.00022191,2]
[341642600,1731055842518,-500.0,0.00022191,2]
[341642601,1731055842527,-3240.68,0.00022191,2]
[341642602,1731055842536,-500.0,0.00022191,2]
[341642603,1731055842545,-500.0,0.00022191,2]
[341642604,1731055842554,-500.0,0.00022191,2]
[341642605,1731055842564,-500.0,0.00022191,2]
[341642606,1731055842574,-500.0,0.00022191,2]
[341642607,1731055842583,-500.0,0.00022191,2]
[341642608,1731055842593,-1106.55,0.00022191,2]
[341642609,1731055842602,-9681.86,0.00022191,2]
[341642610,1731055842611,-500.0,0.00022191,2]
[341642611,1731055842620,-5122.09,0.00022191,2]
[341642612,1731055842629,-11747.64,0.00022191,2]
[341642613,1731055842639,-7211.395662,0.00022208,2]
[341642614,1731055842652,-166.666666,0.00022431,2]
[341642615,1731055842661,-1720.21,0.00022464,2]
[341642616,1731055842670,-1720.21,0.00022464,2]
[341642617,1731055842679,-1720.21,0.00022464,2]
[341642618,1731055842689,-1720.21,0.00022464,2]
[341642619,1731055842699,-1720.21,0.00022464,2]
[341642620,1731055842708,-500.0,0.00022465,2]
[341642621,1731055842718,-500.0,0.00022465,2]
[341642622,1731055842729,-500.0,0.00022465,2]
[341642623,1731055842738,-526.22017343,0.00022465,2]
[341642624,1731055842747,-500.0,0.00022465,2]
[341642625,1731055842756,-500.0,0.00022465,2]
[341642626,1731055842765,-322.31847983,0.00022465,2]
[341642627,1731055842776,-517.33548939,0.00022465,2]
[341642628,1731055842786,-500.0,0.00022465,2]
[341642629,1731055842795,-627.5130378,0.00022465,2]
[341642630,1731055842804,-500.0,0.00022465,2]
[341642631,1731055842814,-500.0,0.00022465,2]
[341642632,1731055842823,-500.0,0.00022465,2]
[341642633,1731055842833,-500.0,0.00022465,2]
[341642634,1731055842843,-500.0,0.00022465,2]
[341642635,1731055842852,-500.0,0.00022465,2]
[341642636,1731055842861,-500.0,0.00022465,2]
[341642637,1731055842870,-500.0,0.00022465,2]
[341642638,1731055842880,-500.0,0.00022465,2]
[341642639,1731055842889,-500.0,0.00022465,2]
[341642640,1731055842899,-500.0,0.00022465,2]
[341642641,1731055842908,-746.4,0.00022465,2]
[341642642,1731055842917,-500.0,0.00022465,2]
[341642643,1731055842927,-500.0,0.00022465,2]
[341642644,1731055842936,-500.0,0.00022465,2]
[341642645,1731055842946,-545.69651169,0.00022465,2]
[341642646,1731055842955,-521.38574639,0.00022465,2]
[341642647,1731055842964,-500.0,0.00022465,2]
[341642648,1731055842974,-310.39675472,0.00022465,2]
[341642649,1731055842983,-500.0,0.00022465,2]
[341642650,1731055842993,-500.0,0.00022465,2]
[341642651,1731055843002,-500.0,0.00022465,2]
[341642652,1731055843012,-1556.05,0.00022465,2]
[341642653,1731055843022,-500.0,0.00022465,2]
[341642654,1731055843031,-570.56,0.00022465,2]
[341642655,1731055843041,-500.0,0.00022465,2]
[341642656,1731055843050,-500.0,0.00022465,2]
[341642657,1731055843059,-500.0,0.00022465,2]
[341642658,1731055843069,-625.89,0.00022465,2]
[341642659,1731055843078,-500.0,0.00022465,2]
[341642660,1731055843087,-793.11,0.00022465,2]
[341642661,1731055843097,-500.0,0.00022465,2]
[341642662,1731055843107,-500.0,0.00022465,2]
[341642663,1731055843117,-500.0,0.00022465,2]
[341642664,1731055843126,-1474.44,0.00022465,2]
[341642665,1731055843136,-162.24876163,0.00022465,2]
[341642666,1731055843145,-500.0,0.00022465,2]
[341642667,1731055843154,-500.0,0.00022465,2]
[341642668,1731055843164,-194.29626354,0.00022465,2]
[341642669,1731055843173,-500.0,0.00022465,2]
[341642671,1731055843182,-500.0,0.00022465,2]
[341642673,1731055843192,-722.59,0.00022465,2]
[341642675,1731055843201,-500.0,0.00022465,2]
[341642677,1731055843211,-500.0,0.00022465,2]
[341642679,1731055843220,-500.0,0.00022465,2]
[341642681,1731055843229,-500.0,0.00022465,2]
[341642683,1731055843239,-500.0,0.00022465,2]
[341642685,1731055843248,-556.87,0.00022465,2]
[341642687,1731055843258,-500.0,0.00022465,2]
[341642688,1731055843267,-500.0,0.00022465,2]
[341642689,1731055843276,-500.0,0.00022465,2]
[341642690,1731055843286,-441.88722109,0.00022465,2]
[341642691,1731055843295,-488.58438961,0.00022465,2]
[341642692,1731055843305,-500.0,0.00022465,2]
[341642693,1731055843315,-500.0,0.00022465,2]
[341642694,1731055843324,-500.0,0.00022465,2]
[341642695,1731055843333,-500.0,0.00022465,2]
[341642696,1731055843342,-500.0,0.00022465,2]
[341642697,1731055843353,-910.19,0.00022465,2]
[341642698,1731055843362,-308.09432832,0.00022465,2]
[341642699,1731055843371,-500.0,0.00022465,2]
[341642700,1731055843380,-500.0,0.00022465,2]
[341642701,1731055843389,-500.0,0.00022465,2]
[341642702,1731055843398,-500.0,0.00022465,2]
[341642703,1731055843407,-500.0,0.00022465,2]
[341642704,1731055843416,-553.56,0.00022465,2]
[341642705,1731055843425,-500.0,0.00022465,2]
[341642706,1731055843434,-987.64,0.00022465,2]
[341642707,1731055843443,-500.0,0.00022465,2]
[341642708,1731055843452,-500.0,0.00022465,2]
[341642709,1731055843462,-500.0,0.00022465,2]
[341642710,1731055843471,-500.0,0.00022465,2]
[341642712,1731055843481,-500.0,0.00022465,2]
[341642714,1731055843491,-500.0,0.00022465,2]
[341642716,1731055843500,-430.11521447,0.00022465,2]
[341642718,1731055843509,-500.0,0.00022465,2]
[341642720,1731055843519,-683.0,0.00022465,2]
[341642722,1731055843528,-500.0,0.00022465,2]
[341642723,1731055843538,-500.0,0.00022465,2]
[341642724,1731055843548,-500.0,0.00022465,2]
[341642725,1731055843558,-684.63,0.00022465,2]
[341642726,1731055843568,-500.0,0.00022465,2]
[341642727,1731055843578,-500.0,0.00022465,2]
[341642728,1731055843588,-500.0,0.00022465,2]
[341642729,1731055843598,-500.0,0.00022465,2]
[341642730,1731055843607,-1000.37,0.00022465,2]
[341642731,1731055843616,-500.0,0.00022465,2]
[341642732,1731055843626,-500.0,0.00022465,2]
[341642733,1731055843637,-500.0,0.00022465,2]
[341642734,1731055843650,-4039.9,0.00022465,2]
[341642735,1731055843661,-599.6,0.00022465,2]
[341642736,1731055843670,-500.0,0.00022465,2]
[341642737,1731055843679,-500.0,0.00022465,2]
[341642738,1731055843688,-537.79849841,0.00022465,2]
[341642739,1731055843697,-500.0,0.00022465,2]
[341642740,1731055843706,-774.9,0.00022465,2]
[341642741,1731055843716,-500.0,0.00022465,2]
[341642742,1731055843725,-500.0,0.00022465,2]
[341642743,1731055843735,-500.0,0.00022465,2]
[341642744,1731055843744,-500.0,0.00022465,2]
[341642745,1731055843753,-577.92700019,0.00022465,2]
[341642746,1731055843762,-500.0,0.00022465,2]
[341642747,1731055843771,-500.0,0.00022465,2]
[341642748,1731055843780,-500.0,0.00022465,2]
[341642749,1731055843789,-500.0,0.00022465,2]
[341642750,1731055843798,-500.0,0.00022465,2]
[341642751,1731055843807,-500.0,0.00022465,2]
[341642752,1731055843816,-500.0,0.00022465,2]
[341642753,1731055843825,-509.84,0.00022465,2]
[341642754,1731055843834,-500.0,0.00022465,2]
[341642755,1731055843843,-500.0,0.00022465,2]
[341642756,1731055843852,-500.0,0.00022465,2]
[341642757,1731055843861,-500.0,0.00022465,2]
[341642758,1731055843870,-500.0,0.00022465,2]
[341642759,1731055843879,-500.0,0.00022465,2]
[341642760,1731055843888,-500.0,0.00022465,2]
[341642761,1731055843897,-1236.91,0.00022465,2]
[341642762,1731055843906,-4739.43,0.00022465,2]
[341642764,1731055843915,-500.0,0.00022465,2]
[341642766,1731055843924,-500.0,0.00022465,2]
[341642768,1731055843934,-500.0,0.00022465,2]
[341642770,1731055843942,-613.27546781,0.00022465,2]
[341642772,1731055843951,-500.0,0.00022465,2]
[341642773,1731055843960,-3240.68,0.00022465,2]
[341642774,1731055843970,-646.71601174,0.00022465,2]
[341642775,1731055843980,-500.0,0.00022465,2]
[341642776,1731055843989,-500.0,0.00022465,2]
[341642777,1731055843998,-500.0,0.00022465,2]
[341642778,1731055844007,-500.0,0.00022465,2]
[341642779,1731055844017,-1106.55,0.00022465,2]
[341642780,1731055844027,-9681.86,0.00022465,2]
[341642781,1731055844037,-500.0,0.00022465,2]
[341642782,1731055844047,-5122.09,0.00022465,2]
[341642783,1731055844057,-500.0,0.00022673,2]
[341642784,1731055844067,-500.0,0.00022673,2]
[341642785,1731055844077,-501.12172304,0.00022673,2]
[341642786,1731055844086,-500.0,0.00022673,2]
[341642787,1731055844095,-500.0,0.00022673,2]
[341642788,1731055844104,-500.0,0.000227,2]
[341642789,1731055844113,-1720.21,0.00022738,2]
[341642790,1731055844122,-1720.21,0.00022738,2]
[341642791,1731055844131,-1720.21,0.00022738,2]
[341642792,1731055844140,-1720.21,0.00022738,2]
[341642793,1731055844149,-1720.21,0.00022738,2]
[341642794,1731055844159,-1720.21,0.00022738,2]
[341642795,1731055844168,-1720.21,0.00022738,2]
[341642796,1731055844177,-1720.39117655,0.00022738,2]
[341642797,1731055844186,-500.0,0.00022739,2]
[341642798,1731055844195,-500.0,0.00022739,2]
[341642799,1731055844204,-500.0,0.00022739,2]
[341642800,1731055844213,-500.0,0.00022739,2]
[341642801,1731055844222,-500.0,0.00022739,2]
[341642802,1731055844232,-500.0,0.00022739,2]
[341642803,1731055844331,-500.0,0.00022739,2]
[341642804,1731055844342,-151.0,0.00022739,7]
[341642805,1731055844351,-500.0,0.00022739,2]
[341642806,1731055844362,-500.0,0.00022739,2]
[341642807,1731055844372,-500.0,0.00022739,2]
[341642808,1731055844381,-500.0,0.00022739,2]
[341642809,1731055844390,-500.0,0.00022739,2]
[341642810,1731055844400,-500.0,0.00022739,2]
[341642811,1731055844409,-500.0,0.00022739,2]
[341642812,1731055844418,-500.0,0.00022739,2]
[341642813,1731055844428,-746.4,0.00022739,2]
[341642814,1731055844437,-500.0,0.00022739,2]
[341642815,1731055844447,-500.0,0.00022739,2]
[341642816,1731055844456,-500.0,0.00022739,2]
[341642817,1731055844466,-500.0,0.00022739,2]
[341642818,1731055844476,-500.0,0.00022739,2]
[341642819,1731055844487,-500.0,0.00022739,2]
[341642820,1731055844497,-500.0,0.00022739,2]
[341642821,1731055844507,-1556.05,0.00022739,2]
[341642822,1731055844517,-500.0,0.00022739,2]
[341642823,1731055844526,-570.56,0.00022739,2]
[341642824,1731055844537,-500.0,0.00022739,2]
[341642825,1731055844547,-500.0,0.00022739,2]
[341642826,1731055844558,-500.0,0.00022739,2]
[341642827,1731055844568,-625.89,0.00022739,2]
[341642828,1731055844578,-500.0,0.00022739,2]
[341642829,1731055844588,-793.11,0.00022739,2]
[341642830,1731055844598,-529.56547606,0.00022739,2]
[341642831,1731055844609,-500.0,0.00022739,2]
[341642832,1731055844619,-207.60230145,0.00022739,2]
[341642833,1731055844629,-1474.44,0.00022739,2]
[341642834,1731055844639,-500.0,0.00022739,2]
[341642835,1731055844652,-500.0,0.00022739,2]
[341642836,1731055844662,-500.0,0.00022739,2]
[341642837,1731055844671,-500.0,0.00022739,2]
[341642838,1731055844681,-722.59,0.00022739,2]
[341642839,1731055844691,-500.0,0.00022739,2]
[341642840,1731055844700,-532.19404274,0.00022739,2]
[341642841,1731055844709,-500.0,0.00022739,2]
[341642842,1731055844720,-500.0,0.00022739,2]
[341642843,1731055844731,-500.0,0.00022739,2]
[341642844,1731055844741,-556.87,0.00022739,2]
[341642845,1731055844750,-500.0,0.00022739,2]
[341642846,1731055844759,-500.0,0.00022739,2]
[341642847,1731055844769,-500.0,0.00022739,2]
[341642848,1731055844778,-500.0,0.00022739,2]
[341642849,1731055844788,-500.0,0.00022739,2]
[341642850,1731055844797,-500.0,0.00022739,2]
[341642851,1731055844807,-500.0,0.00022739,2]
[341642852,1731055844817,-910.19,0.00022739,2]
[341642853,1731055844826,-500.0,0.00022739,2]
[341642854,1731055844836,-626.03469072,0.00022739,2]
[341642855,1731055844845,-500.0,0.00022739,2]
[341642856,1731055844855,-157.063331,0.00022739,7]
[341642857,1731055844865,-500.0,0.00022739,2]
[341642858,1731055844874,-500.0,0.00022739,2]
[341642859,1731055844883,-553.56,0.00022739,2]
[341642860,1731055844892,-500.0,0.00022739,2]
[341642861,1731055844903,-987.64,0.00022739,2]
[341642862,1731055844912,-500.0,0.00022739,2]
[341642863,1731055844922,-617.53453115,0.00022739,2]
[341642864,1731055844931,-282.07478881,0.00022739,2]
[341642865,1731055844939,-500.0,0.00022739,2]
[341642866,1731055844949,-500.0,0.00022739,2]
[341642867,1731055844958,-601.105262,0.00022739,7]
[341642868,1731055844967,-1270.564209,0.00022739,7]
[341642869,1731055844979,-500.0,0.00022739,2]
[341642870,1731055844988,-601.105262,0.00022739,7]
[341642871,1731055844997,-500.0,0.00022739,2]
[341642872,1731055845007,-683.0,0.00022739,2]
[341642873,1731055845017,-500.0,0.00022739,2]
[341642874,1731055845026,-500.0,0.00022739,2]
[341642875,1731055845035,-500.0,0.00022739,2]
[341642876,1731055845044,-684.63,0.00022739,2]
[341642877,1731055845053,-500.0,0.00022739,2]
[341642878,1731055845062,-151.0,0.00022739,7]
[341642879,1731055845072,-500.0,0.00022739,2]
[341642880,1731055845081,-416.907265,0.00022739,7]
[341642881,1731055845090,-500.0,0.00022739,2]
[341642882,1731055845100,-1000.37,0.00022739,2]
[341642883,1731055845109,-500.0,0.00022739,2]
[341642884,1731055845118,-416.907265,0.00022739,7]
[341642885,1731055845127,-182.178575,0.00022739,7]
[341642886,1731055845136,-151.0,0.00022739,7]
[341642887,1731055845145,-500.0,0.00022739,2]
[341642888,1731055845154,-182.178575,0.00022739,7]
[341642889,1731055845164,-500.0,0.00022739,2]
[341642890,1731055845173,-151.0,0.00022739,7]
[341642891,1731055845184,-151.0,0.00022739,7]
[341642892,1731055845193,-151.0,0.00022739,7]
[341642893,1731055845202,-4039.9,0.00022739,2]
[341642894,1731055845213,-599.6,0.00022739,2]
[341642895,1731055845222,-500.0,0.00022739,2]
[341642896,1731055845233,-500.0,0.00022739,2]
[341642897,1731055845243,-580.42209627,0.00022739,2]
[341642898,1731055845253,-774.9,0.00022739,2]
[341642899,1731055845263,-500.0,0.00022739,2]
[341642900,1731055845273,-500.0,0.00022739,2]
[341642901,1731055845283,-500.0,0.00022739,2]
[341642902,1731055845292,-151.0,0.00022739,7]
[341642903,1731055845302,-150.24173145,0.00022739,2]
[341642904,1731055845311,-342.790446,0.00022739,7]
[341642905,1731055845321,-500.0,0.00022739,2]
[341642906,1731055845331,-500.0,0.00022739,2]
[341642907,1731055845340,-342.790446,0.00022739,7]
[341642908,1731055845349,-151.0,0.00022739,7]
[341642909,1731055845359,-388.683511,0.00022739,7]
[341642910,1731055845368,-500.0,0.00022739,2]
[341642911,1731055845378,-388.683511,0.00022739,7]
[341642912,1731055845388,-208.408704,0.00022739,7]
[341642913,1731055845398,-500.0,0.00022739,2]
[341642914,1731055845408,-500.0,0.00022739,2]
[341642915,1731055845418,-157.200074,0.00022739,7]
[341642916,1731055845427,-500.0,0.00022739,2]
[341642917,1731055845438,-157.200074,0.00022739,7]
[341642918,1731055845448,-509.84,0.00022739,2]
[341642919,1731055845457,-500.0,0.00022739,2]
[341642920,1731055845467,-190.608239,0.00022739,7]
[341642921,1731055845480,-500.0,0.00022739,2]
[341642922,1731055845490,-151.0,0.00022739,7]
[341642923,1731055845500,-190.608239,0.00022739,7]
[341642924,1731055845511,-500.0,0.00022739,2]
[341642925,1731055845521,-500.0,0.00022739,2]
[341642926,1731055845531,-151.0,0.00022739,7]
[341642927,1731055845541,-500.0,0.00022739,2]
[341642928,1731055845550,-500.0,0.00022739,2]
[341642929,1731055845559,-500.0,0.00022739,2]
[341642930,1731055845569,-1236.91,0.00022739,2]
[341642931,1731055845578,-151.0,0.00022739,7]
[341642932,1731055845587,-4739.43,0.00022739,2]
[341642933,1731055845598,-541.66879555,0.00022739,2]
[341642934,1731055845607,-151.0,0.00022739,7]
[341642935,1731055845615,-500.0,0.00022739,2]
[341642936,1731055845624,-151.0,0.00022739,7]
[341642937,1731055845633,-500.0,0.00022739,2]
[341642938,1731055845646,-3240.68,0.00022739,2]
[341642939,1731055845655,-500.0,0.00022739,2]
[341642940,1731055845664,-500.0,0.00022739,2]
[341642941,1731055845673,-500.0,0.00022739,2]
[341642942,1731055845683,-1106.55,0.00022739,2]
[341642943,1731055845693,-9681.86,0.00022739,2]
[341642944,1731055845702,-500.0,0.00022739,2]
[341642945,1731055845712,-5122.09,0.00022739,2]
[341642946,1731055845724,-166.666666,0.00022944,2]
[341642947,1731055845735,-500.0,0.00023013,2]
[341642948,1731055845744,-500.0,0.00023013,2]
[341642949,1731055845753,-500.0,0.00023013,2]
[341642950,1731055845763,-500.0,0.00023013,2]
[341642951,1731055845772,-500.0,0.00023013,2]
[341642952,1731055845782,-500.0,0.00023013,2]
[341642953,1731055845791,-500.0,0.00023013,2]
[341642954,1731055845801,-500.0,0.00023013,2]
[341642955,1731055845811,-500.0,0.00023013,2]
[341642956,1731055845821,-500.0,0.00023013,2]
[341642957,1731055845831,-151.0,0.00023013,7]
[341642958,1731055845841,-151.0,0.00023013,7]
[341642959,1731055845853,-500.0,0.00023013,2]
[341642960,1731055845863,-151.0,0.00023013,7]
[341642961,1731055845873,-151.0,0.00023013,7]
[341642962,1731055845883,-151.0,0.00023013,7]
[341642963,1731055845893,-500.0,0.00023013,2]
[341642964,1731055845902,-500.0,0.00023013,2]
[341642965,1731055845911,-746.4,0.00023013,2]
[341642966,1731055845921,-500.0,0.00023013,2]
[341642967,1731055845931,-500.0,0.00023013,2]
[341642968,1731055845941,-500.0,0.00023013,2]
[341642969,1731055845951,-500.0,0.00023013,2]
[341642970,1731055845960,-500.0,0.00023013,2]
[341642971,1731055845969,-500.0,0.00023013,2]
[341642972,1731055845979,-500.0,0.00023013,2]
[341642973,1731055845988,-1556.05,0.00023013,2]
[341642974,1731055845998,-485.91707152,0.00023013,2]
[341642975,1731055846007,-570.56,0.00023013,2]
[341642977,1731055846017,-500.0,0.00023013,2]
[341642979,1731055846026,-500.0,0.00023013,2]
[341642981,1731055846036,-500.0,0.00023013,2]
[341642982,1731055846046,-625.89,0.00023013,2]
[341642983,1731055846055,-500.0,0.00023013,2]
[341642984,1731055846065,-793.11,0.00023013,2]
[341642985,1731055846074,-500.0,0.00023013,2]
[341642986,1731055846083,-1474.44,0.00023013,2]
[341642987,1731055846093,-500.0,0.00023013,2]
[341642988,1731055846102,-500.0,0.00023013,2]
[341642989,1731055846112,-738.979995,0.00023013,7]
[341642990,1731055846122,-500.0,0.00023013,2]
[341642991,1731055846131,-175.527622,0.00023013,7]
[341642992,1731055846141,-500.0,0.00023013,2]
[341642993,1731055846150,-175.527622,0.00023013,7]
[341642994,1731055846160,-722.59,0.00023013,2]
[341642995,1731055846169,-565.41547369,0.00023013,2]